[Event "Titled Tuesday Blitz May 03 Late 2022"]
[White "Abdyzhapar, Asylbek"]
[Black "Zhang, Derek"]
[WhiteFideId "13800337"]
[BlackFideId "2087871"]
[WhiteElo "2331"]
[BlackElo "2085"]
[Result "0-1"]
[Round "07"]
[TimeControl "180+1"]
[Date "2022.05.03"]
[WhiteClock "0:01:07"]
[BlackClock "0:00:12"]

1. d4 {[%clk 0:03:00]}  d6 {[%clk 0:02:45]} 2. Nc3 {[%clk 0:02:59]}  e5 {[%clk 0:02:44]} 3. Nf3 {[%clk 0:02:56]}  exd4 {[%clk 0:02:41]} 4. Nxd4 {[%clk 0:02:55]}  Nf6 {[%clk 0:02:41]} 5. e4 {[%clk 0:02:54]}  Be7 {[%clk 0:02:42]} 6. Be2 {[%clk 0:02:54]}  O-O {[%clk 0:02:43]} 7. O-O {[%clk 0:02:55]}  Re8 {[%clk 0:02:44]} 8. f3 {[%clk 0:02:53]}  Nbd7 {[%clk 0:02:43]} 9. Be3 {[%clk 0:02:52]}  Ne5 {[%clk 0:02:43]} 10. Re1 {[%clk 0:02:51]}  Bf8 {[%clk 0:02:43]} 11. Bf1 {[%clk 0:02:51]}  Ng6 {[%clk 0:02:42]} 12. a4 {[%clk 0:02:48]}  h6 {[%clk 0:02:25]} 13. Qd2 {[%clk 0:02:48]}  d5 {[%clk 0:02:24]} 14. exd5 {[%clk 0:02:47]}  Nxd5 {[%clk 0:02:24]} 15. Nxd5 {[%clk 0:02:47]}  Qxd5 {[%clk 0:02:25]} 16. c3 {[%clk 0:02:43]}  Bd7 {[%clk 0:02:20]} 17. Nb5 {[%clk 0:02:38]}  Qxd2 {[%clk 0:02:19]} 18. Bxd2 {[%clk 0:02:38]}  c6 {[%clk 0:02:00]} 19. Nd4 {[%clk 0:02:34]}  Bc5 {[%clk 0:01:56]} 20. Be3 {[%clk 0:02:34]}  Re7 {[%clk 0:01:47]} 21. Bf2 {[%clk 0:02:34]}  Rae8 {[%clk 0:01:46]} 22. Rxe7 {[%clk 0:02:33]}  Rxe7 {[%clk 0:01:46]} 23. b4 {[%clk 0:02:33]}  Bd6 {[%clk 0:01:38]} 24. Rd1 {[%clk 0:02:32]}  Bc7 {[%clk 0:01:30]} 25. a5 {[%clk 0:02:32]}  b6 {[%clk 0:01:16]} 26. a6 {[%clk 0:02:30]}  Kf8 {[%clk 0:01:11]} 27. b5 {[%clk 0:02:30]}  c5 {[%clk 0:01:09]} 28. Nc6 {[%clk 0:02:29]}  Bxc6 {[%clk 0:00:51]} 29. bxc6 {[%clk 0:02:29]}  Ne5 {[%clk 0:00:36]} 30. Bb5 {[%clk 0:02:29]}  g5 {[%clk 0:00:23]} 31. h4 {[%clk 0:02:27]}  f5 {[%clk 0:00:19]} 32. hxg5 {[%clk 0:02:27]}  hxg5 {[%clk 0:00:20]} 33. Kf1 {[%clk 0:02:26]}  Re6 {[%clk 0:00:18]} 34. Rd5 {[%clk 0:02:15]}  Kf7 {[%clk 0:00:16]} 35. g3 {[%clk 0:01:59]}  Kf6 {[%clk 0:00:16]} 36. f4 {[%clk 0:02:00]}  Nxc6 {[%clk 0:00:10]} 37. Rd7 {[%clk 0:01:59]}  Bb8 {[%clk 0:00:09]} 38. Bc4 {[%clk 0:01:51]}  Re7 {[%clk 0:00:08]} 39. fxg5+ {[%clk 0:01:32]}  Kxg5 {[%clk 0:00:09]} 40. Rd5 {[%clk 0:01:30]}  Ne5 {[%clk 0:00:07]} 41. Be2 {[%clk 0:01:28]}  Rd7 {[%clk 0:00:07]} 42. c4 {[%clk 0:01:24]}  Rxd5 {[%clk 0:00:07]} 43. cxd5 {[%clk 0:01:24]}  Kf6 {[%clk 0:00:08]} 44. Be3 {[%clk 0:01:23]}  Bd6 {[%clk 0:00:08]} 45. Bf4 {[%clk 0:01:23]}  Nf7 {[%clk 0:00:08]} 46. Bb5 {[%clk 0:01:16]}  Bxf4 {[%clk 0:00:08]} 47. gxf4 {[%clk 0:01:16]}  Nd6 {[%clk 0:00:09]} 48. Bc6 {[%clk 0:01:17]}  Kg6 {[%clk 0:00:09]} 49. Kf2 {[%clk 0:01:17]}  Kh5 {[%clk 0:00:10]} 50. Kf3 {[%clk 0:01:17]}  Kh4 {[%clk 0:00:11]} 51. Bd7 {[%clk 0:01:17]}  b5 {[%clk 0:00:10]} 52. Bc6 {[%clk 0:01:16]}  c4 {[%clk 0:00:11]} 53. Ke3 {[%clk 0:01:16]}  Kg3 {[%clk 0:00:10]} 54. Kd4 {[%clk 0:01:16]}  Kxf4 {[%clk 0:00:10]} 55. Kc5 {[%clk 0:01:13]}  Ke5 {[%clk 0:00:11]} 56. Kb4 {[%clk 0:01:10]}  Kd4 {[%clk 0:00:10]} 57. Bxb5 {[%clk 0:01:06]}  f4 {[%clk 0:00:10]} 58. Bd7 {[%clk 0:01:03]}  f3 {[%clk 0:00:10]} 59. Bh3 {[%clk 0:01:03]}  Kxd5 {[%clk 0:00:10]} 60. Bf1 {[%clk 0:01:04]}  Kd4 {[%clk 0:00:10]} 61. Bh3 {[%clk 0:01:03]}  f2 {[%clk 0:00:10]} 62. Bf1 {[%clk 0:01:03]}  c3 {[%clk 0:00:09]} 63. Kb3 {[%clk 0:01:03]}  Ne4 {[%clk 0:00:10]} 64. Kc2 {[%clk 0:01:03]}  Nd2 {[%clk 0:00:10]} 65. Be2 {[%clk 0:01:03]}  f1=Q {[%clk 0:00:10]} 66. Bxf1 {[%clk 0:01:04]}  Nxf1 {[%clk 0:00:11]} 67. Kb3 {[%clk 0:01:05]}  Ne3 {[%clk 0:00:11]} 68. Kb4 {[%clk 0:01:06]}  c2 {[%clk 0:00:12]} 69. Kb5 {[%clk 0:01:07]}  c1=Q {[%clk 0:00:12]} 0-1


[Site "https://www.chess.com"]

[Event "Titled Tuesday Blitz May 03 Late 2022"]
[White "Akrakan"]
[Black "Ovezdurdyyeva, Jemal"]
[BlackFideId "14001888"]
[WhiteElo "2135"]
[BlackElo "1946"]
[Result "0-1"]
[Round "07"]
[TimeControl "180+1"]
[Date "2022.05.03"]
[WhiteClock "0:00:17"]
[BlackClock "0:00:28"]

1. e4 {[%clk 0:03:00]}  d6 {[%clk 0:02:59]} 2. d4 {[%clk 0:03:00]}  Nf6 {[%clk 0:02:59]} 3. Bd3 {[%clk 0:03:00]}  g6 {[%clk 0:03:00]} 4. f4 {[%clk 0:03:00]}  c5 {[%clk 0:02:57]} 5. c3 {[%clk 0:02:59]}  cxd4 {[%clk 0:02:56]} 6. cxd4 {[%clk 0:03:00]}  Nc6 {[%clk 0:02:57]} 7. Nf3 {[%clk 0:03:00]}  Bg7 {[%clk 0:02:55]} 8. O-O {[%clk 0:02:59]}  Kf8 {[%clk 0:02:55]} 9. Nc3 {[%clk 0:02:57]}  Qb6 {[%clk 0:02:53]} 10. e5 {[%clk 0:02:53]}  dxe5 {[%clk 0:02:42]} 11. fxe5 {[%clk 0:02:53]}  Ng4 {[%clk 0:02:39]} 12. Na4 {[%clk 0:02:51]}  Qd8 {[%clk 0:02:34]} 13. Kh1 {[%clk 0:02:34]}  Nxd4 {[%clk 0:02:00]} 14. Bc4 {[%clk 0:02:22]}  Ne6 {[%clk 0:01:59]} 15. Qe2 {[%clk 0:02:08]}  Qa5 {[%clk 0:01:53]} 16. Bxe6 {[%clk 0:01:40]}  Bxe6 {[%clk 0:01:41]} 17. Ng5 {[%clk 0:01:40]}  Bf5 {[%clk 0:01:34]} 18. Qc4 {[%clk 0:01:24]}  Nxe5 {[%clk 0:01:29]} 19. Qb3 {[%clk 0:01:14]}  h6 {[%clk 0:01:17]} 20. Nf3 {[%clk 0:01:02]}  Nxf3 {[%clk 0:01:13]} 21. gxf3 {[%clk 0:01:02]}  Bf6 {[%clk 0:01:03]} 22. Be3 {[%clk 0:00:59]}  Kg7 {[%clk 0:01:01]} 23. Rac1 {[%clk 0:00:58]}  Be6 {[%clk 0:00:57]} 24. Qa3 {[%clk 0:00:43]}  Qh5 {[%clk 0:00:47]} 25. Nc5 {[%clk 0:00:36]}  Bd5 {[%clk 0:00:47]} 26. Ne4 {[%clk 0:00:35]}  Be5 {[%clk 0:00:44]} 27. Bg1 {[%clk 0:00:32]}  Rac8 {[%clk 0:00:33]} 28. Rce1 {[%clk 0:00:30]}  Rc2 {[%clk 0:00:30]} 29. Nf2 {[%clk 0:00:17]}  Bxf3+ {[%clk 0:00:28]} 0-1


[Site "https://www.chess.com"]

[Event "Titled Tuesday Blitz May 03 Late 2022"]
[White "Ambartsumova, Karina"]
[Black "Weber, Samuel"]
[WhiteFideId "4166299"]
[BlackFideId "12924008"]
[WhiteElo "2262"]
[BlackElo "2215"]
[Result "1-0"]
[Round "07"]
[TimeControl "180+1"]
[Date "2022.05.03"]
[WhiteClock "0:01:28"]
[BlackClock "0:00:32"]

1. c4 {[%clk 0:02:59]}  Nf6 {[%clk 0:02:59]} 2. Nf3 {[%clk 0:02:58]}  d6 {[%clk 0:02:49]} 3. d4 {[%clk 0:02:58]}  g6 {[%clk 0:02:44]} 4. g3 {[%clk 0:02:58]}  Bg7 {[%clk 0:02:44]} 5. Bg2 {[%clk 0:02:58]}  O-O {[%clk 0:02:44]} 6. Nc3 {[%clk 0:02:58]}  c6 {[%clk 0:02:38]} 7. e4 {[%clk 0:02:58]}  Nbd7 {[%clk 0:02:35]} 8. O-O {[%clk 0:02:58]}  e5 {[%clk 0:02:35]} 9. Qc2 {[%clk 0:02:59]}  Re8 {[%clk 0:02:35]} 10. Rd1 {[%clk 0:02:54]}  exd4 {[%clk 0:02:34]} 11. Nxd4 {[%clk 0:02:55]}  Nc5 {[%clk 0:02:30]} 12. h3 {[%clk 0:02:51]}  Bd7 {[%clk 0:02:27]} 13. b4 {[%clk 0:02:38]}  Ne6 {[%clk 0:02:21]} 14. Nxe6 {[%clk 0:02:38]}  Bxe6 {[%clk 0:02:13]} 15. e5 {[%clk 0:02:25]}  Nd7 {[%clk 0:02:13]} 16. exd6 {[%clk 0:02:22]}  Bxc4 {[%clk 0:02:14]} 17. Bb2 {[%clk 0:02:19]}  f5 {[%clk 0:01:57]} 18. Na4 {[%clk 0:02:12]}  b5 {[%clk 0:01:50]} 19. Bxg7 {[%clk 0:02:09]}  Kxg7 {[%clk 0:01:49]} 20. Bxc6 {[%clk 0:02:01]}  Re2 {[%clk 0:01:44]} 21. Qc3+ {[%clk 0:01:59]}  Nf6 {[%clk 0:01:42]} 22. Bxa8 {[%clk 0:01:50]}  Qxa8 {[%clk 0:01:42]} 23. Nc5 {[%clk 0:01:50]}  f4 {[%clk 0:01:37]} 24. d7 {[%clk 0:01:47]}  fxg3 {[%clk 0:01:36]} 25. Qxg3 {[%clk 0:01:42]}  Qd8 {[%clk 0:01:31]} 26. Nb7 {[%clk 0:01:35]}  Qb6 {[%clk 0:00:31]} 27. d8=Q {[%clk 0:01:31]}  Qxb7 {[%clk 0:00:32]} 28. Qdc7+ {[%clk 0:01:28]} 1-0


[Site "https://www.chess.com"]

[Event "Titled Tuesday Blitz May 03 Late 2022"]
[White "Andreikin, Dmitry"]
[Black "Narayanan.S.L"]
[WhiteFideId "4158814"]
[BlackFideId "5058422"]
[WhiteElo "2736"]
[BlackElo "2494"]
[Result "1-0"]
[Round "07"]
[TimeControl "180+1"]
[Date "2022.05.03"]
[WhiteClock "0:00:36"]
[BlackClock "0:00:04"]

1. d4 {[%clk 0:03:00]}  Nf6 {[%clk 0:03:00]} 2. c4 {[%clk 0:03:01]}  g6 {[%clk 0:03:00]} 3. Nc3 {[%clk 0:03:00]}  Bg7 {[%clk 0:03:00]} 4. e4 {[%clk 0:03:00]}  O-O {[%clk 0:03:01]} 5. Be3 {[%clk 0:02:59]}  d6 {[%clk 0:03:01]} 6. h3 {[%clk 0:03:00]}  Nc6 {[%clk 0:03:01]} 7. d5 {[%clk 0:02:48]}  Ne5 {[%clk 0:03:00]} 8. f4 {[%clk 0:02:48]}  Ned7 {[%clk 0:03:00]} 9. Bd3 {[%clk 0:02:44]}  e6 {[%clk 0:02:58]} 10. Nf3 {[%clk 0:02:41]}  exd5 {[%clk 0:02:55]} 11. cxd5 {[%clk 0:02:42]}  c6 {[%clk 0:02:56]} 12. dxc6 {[%clk 0:02:37]}  bxc6 {[%clk 0:02:57]} 13. O-O {[%clk 0:02:38]}  Re8 {[%clk 0:02:57]} 14. Bc2 {[%clk 0:02:34]}  Nxe4 {[%clk 0:02:12]} 15. Nxe4 {[%clk 0:02:35]}  d5 {[%clk 0:02:12]} 16. f5 {[%clk 0:02:35]}  dxe4 {[%clk 0:02:10]} 17. Ng5 {[%clk 0:02:33]}  Ne5 {[%clk 0:02:09]} 18. fxg6 {[%clk 0:02:16]}  hxg6 {[%clk 0:02:04]} 19. Bb3 {[%clk 0:02:03]}  Bh6 {[%clk 0:01:58]} 20. Qc1 {[%clk 0:01:57]}  Kg7 {[%clk 0:00:53]} 21. Nxf7 {[%clk 0:01:49]}  Bxe3+ {[%clk 0:00:53]} 22. Qxe3 {[%clk 0:01:49]}  Qb6 {[%clk 0:00:53]} 23. Qxb6 {[%clk 0:01:41]}  axb6 {[%clk 0:00:54]} 24. Nd6 {[%clk 0:01:38]}  Re7 {[%clk 0:00:51]} 25. Nxe4 {[%clk 0:01:28]}  c5 {[%clk 0:00:51]} 26. Bd5 {[%clk 0:01:22]}  Ra4 {[%clk 0:00:49]} 27. Nc3 {[%clk 0:01:20]}  Rd4 {[%clk 0:00:49]} 28. Rfe1 {[%clk 0:01:13]}  Bf5 {[%clk 0:00:40]} 29. Re3 {[%clk 0:01:09]}  Nc6 {[%clk 0:00:36]} 30. Rae1 {[%clk 0:01:08]}  Rxe3 {[%clk 0:00:36]} 31. Rxe3 {[%clk 0:01:09]}  Nb4 {[%clk 0:00:36]} 32. Bf3 {[%clk 0:01:04]}  Rd2 {[%clk 0:00:25]} 33. Re2 {[%clk 0:01:04]}  Rd7 {[%clk 0:00:20]} 34. g4 {[%clk 0:01:01]}  Bd3 {[%clk 0:00:20]} 35. Re6 {[%clk 0:01:00]}  b5 {[%clk 0:00:20]} 36. Re5 {[%clk 0:00:59]}  Rc7 {[%clk 0:00:17]} 37. a3 {[%clk 0:00:44]}  Nc2 {[%clk 0:00:17]} 38. Be4 {[%clk 0:00:45]}  Bxe4 {[%clk 0:00:14]} 39. Nxe4 {[%clk 0:00:45]}  b4 {[%clk 0:00:07]} 40. a4 {[%clk 0:00:37]}  c4 {[%clk 0:00:07]} 41. Rc5 {[%clk 0:00:38]}  Rxc5 {[%clk 0:00:05]} 42. Nxc5 {[%clk 0:00:39]}  b3 {[%clk 0:00:06]} 43. Ne4 {[%clk 0:00:34]}  Nb4 {[%clk 0:00:05]} 44. a5 {[%clk 0:00:34]}  Kf7 {[%clk 0:00:03]} 45. Nd6+ {[%clk 0:00:33]}  Ke6 {[%clk 0:00:03]} 46. Nxc4 {[%clk 0:00:34]}  Kd5 {[%clk 0:00:04]} 47. Nd2 {[%clk 0:00:34]}  Kc5 {[%clk 0:00:04]} 48. Nxb3+ {[%clk 0:00:34]}  Kb5 {[%clk 0:00:04]} 49. h4 {[%clk 0:00:34]}  Nd3 {[%clk 0:00:05]} 50. h5 {[%clk 0:00:35]}  gxh5 {[%clk 0:00:06]} 51. gxh5 {[%clk 0:00:35]}  Nf4 {[%clk 0:00:04]} 52. h6 {[%clk 0:00:36]} 1-0


[Site "https://www.chess.com"]

[Event "Titled Tuesday Blitz May 03 Late 2022"]
[White "Barria Zuniga, Daniel"]
[Black "Vujic, Mihailo"]
[WhiteFideId "3400816"]
[BlackFideId "918873"]
[WhiteElo "2414"]
[BlackElo "2256"]
[Result "0-1"]
[Round "07"]
[TimeControl "180+1"]
[Date "2022.05.03"]
[WhiteClock "0:00:31"]
[BlackClock "0:00:10"]

1. c4 {[%clk 0:02:56]}  e5 {[%clk 0:02:59]} 2. g3 {[%clk 0:02:56]}  Nc6 {[%clk 0:03:00]} 3. Bg2 {[%clk 0:02:56]}  Nf6 {[%clk 0:03:01]} 4. Nc3 {[%clk 0:02:56]}  Bc5 {[%clk 0:03:01]} 5. Na4 {[%clk 0:02:57]}  Be7 {[%clk 0:03:00]} 6. d3 {[%clk 0:02:53]}  d6 {[%clk 0:02:59]} 7. a3 {[%clk 0:02:52]}  h6 {[%clk 0:02:57]} 8. b4 {[%clk 0:02:52]}  Bf5 {[%clk 0:02:57]} 9. b5 {[%clk 0:02:49]}  Na5 {[%clk 0:02:56]} 10. Bd2 {[%clk 0:02:49]}  b6 {[%clk 0:02:54]} 11. Bxa5 {[%clk 0:02:49]}  bxa5 {[%clk 0:02:53]} 12. Bxa8 {[%clk 0:02:49]}  Qxa8 {[%clk 0:02:53]} 13. f3 {[%clk 0:02:48]}  O-O {[%clk 0:02:51]} 14. Nc3 {[%clk 0:02:39]}  Bg6 {[%clk 0:02:28]} 15. Nh3 {[%clk 0:02:32]}  d5 {[%clk 0:02:27]} 16. cxd5 {[%clk 0:02:07]}  Nxd5 {[%clk 0:02:28]} 17. Nxd5 {[%clk 0:02:07]}  Qxd5 {[%clk 0:02:27]} 18. O-O {[%clk 0:02:07]}  Bc5+ {[%clk 0:02:25]} 19. Kg2 {[%clk 0:02:05]}  Bf5 {[%clk 0:02:21]} 20. Nf2 {[%clk 0:02:02]}  Be3 {[%clk 0:02:12]} 21. a4 {[%clk 0:01:48]}  Qe6 {[%clk 0:02:12]} 22. Qc2 {[%clk 0:01:43]}  Rc8 {[%clk 0:01:51]} 23. Rac1 {[%clk 0:01:28]}  Bxc1 {[%clk 0:01:50]} 24. Rxc1 {[%clk 0:01:28]}  g5 {[%clk 0:01:37]} 25. Qc6 {[%clk 0:01:23]}  Qxc6 {[%clk 0:01:36]} 26. Rxc6 {[%clk 0:01:22]}  Kg7 {[%clk 0:01:32]} 27. Ra6 {[%clk 0:01:19]}  Ra8 {[%clk 0:01:28]} 28. Rxa5 {[%clk 0:01:17]}  Kf8 {[%clk 0:01:13]} 29. Ra6 {[%clk 0:01:14]}  Be6 {[%clk 0:01:12]} 30. Ne4 {[%clk 0:01:12]}  Ke7 {[%clk 0:01:11]} 31. Nc5 {[%clk 0:01:11]}  h5 {[%clk 0:01:05]} 32. Nxe6 {[%clk 0:01:09]}  fxe6 {[%clk 0:01:06]} 33. Rc6 {[%clk 0:01:09]}  Kd7 {[%clk 0:01:06]} 34. Ra6 {[%clk 0:01:07]}  Ke7 {[%clk 0:01:04]} 35. Kf2 {[%clk 0:01:07]}  h4 {[%clk 0:00:56]} 36. Ke3 {[%clk 0:01:04]}  Kf6 {[%clk 0:00:47]} 37. g4 {[%clk 0:00:53]}  h3 {[%clk 0:00:33]} 38. Kf2 {[%clk 0:00:49]}  e4 {[%clk 0:00:26]} 39. dxe4 {[%clk 0:00:49]}  Ke5 {[%clk 0:00:26]} 40. Kg3 {[%clk 0:00:45]}  Rd8 {[%clk 0:00:18]} 41. Rxa7 {[%clk 0:00:41]}  Rd2 {[%clk 0:00:17]} 42. Rxc7 {[%clk 0:00:38]}  Rxe2 {[%clk 0:00:16]} 43. Kxh3 {[%clk 0:00:38]}  Kf4 {[%clk 0:00:12]} 44. Rf7+ {[%clk 0:00:37]}  Ke3 {[%clk 0:00:12]} 45. b6 {[%clk 0:00:37]}  Rb2 {[%clk 0:00:11]} 46. b7 {[%clk 0:00:35]}  Kf2 {[%clk 0:00:12]} 47. f4 {[%clk 0:00:31]}  Rb3# {[%clk 0:00:10]} 0-1


[Site "https://www.chess.com"]

[Event "Titled Tuesday Blitz May 03 Late 2022"]
[White "Bibasa, Bob"]
[Black "Bifulco, Michel"]
[WhiteFideId "10000240"]
[BlackFideId "828580"]
[WhiteElo "2056"]
[BlackElo "2165"]
[Result "0-1"]
[Round "07"]
[TimeControl "180+1"]
[Date "2022.05.03"]
[WhiteClock "0:01:45"]
[BlackClock "0:01:26"]

1. e4 {[%clk 0:03:00]}  e5 {[%clk 0:03:00]} 2. Nf3 {[%clk 0:03:00]}  Nc6 {[%clk 0:03:00]} 3. Bc4 {[%clk 0:03:01]}  Nf6 {[%clk 0:03:01]} 4. d3 {[%clk 0:03:01]}  h6 {[%clk 0:03:01]} 5. c3 {[%clk 0:03:01]}  d6 {[%clk 0:03:02]} 6. O-O {[%clk 0:03:01]}  g5 {[%clk 0:03:03]} 7. d4 {[%clk 0:02:54]}  g4 {[%clk 0:03:00]} 8. Nfd2 {[%clk 0:02:53]}  exd4 {[%clk 0:02:59]} 9. cxd4 {[%clk 0:02:53]}  Nxd4 {[%clk 0:02:59]} 10. Nc3 {[%clk 0:02:50]}  Bg7 {[%clk 0:02:58]} 11. Re1 {[%clk 0:02:49]}  O-O {[%clk 0:02:56]} 12. Nf1 {[%clk 0:02:48]}  c5 {[%clk 0:02:36]} 13. Be3 {[%clk 0:02:39]}  Nd7 {[%clk 0:02:31]} 14. Ng3 {[%clk 0:02:36]}  Ne5 {[%clk 0:02:30]} 15. Bf1 {[%clk 0:02:14]}  Nef3+ {[%clk 0:02:14]} 16. gxf3 {[%clk 0:02:11]}  Nxf3+ {[%clk 0:02:14]} 17. Kh1 {[%clk 0:02:07]}  Qh4 {[%clk 0:02:14]} 18. h3 {[%clk 0:02:07]}  Be5 {[%clk 0:02:11]} 19. Bg2 {[%clk 0:01:49]}  Bxg3 {[%clk 0:02:06]} 20. fxg3 {[%clk 0:01:50]}  Qxg3 {[%clk 0:02:06]} 21. Bxf3 {[%clk 0:01:50]}  Qxh3+ {[%clk 0:01:53]} 22. Kg1 {[%clk 0:01:49]}  gxf3 {[%clk 0:01:51]} 23. Qd2 {[%clk 0:01:45]}  Kh7 {[%clk 0:01:39]} 24. Qh2 {[%clk 0:01:45]}  Rg8+ {[%clk 0:01:33]} 25. Kh1 {[%clk 0:01:45]}  f2 {[%clk 0:01:26]} 0-1


[Site "https://www.chess.com"]

[Event "Titled Tuesday Blitz May 03 Late 2022"]
[White "D`Arruda, Ricardo D."]
[Black "Sanchez Alvares, Kelvin Antonio"]
[WhiteFideId "100692"]
[BlackFideId "3906680"]
[WhiteElo "2443"]
[BlackElo "2193"]
[Result "0-1"]
[Round "07"]
[TimeControl "180+1"]
[Date "2022.05.03"]
[WhiteClock "0:00:07"]
[BlackClock "0:00:55"]

1. d4 {[%clk 0:02:52]}  Nf6 {[%clk 0:02:59]} 2. Nf3 {[%clk 0:02:52]}  c5 {[%clk 0:02:59]} 3. d5 {[%clk 0:02:51]}  g6 {[%clk 0:02:58]} 4. Nc3 {[%clk 0:02:49]}  Bg7 {[%clk 0:02:58]} 5. e4 {[%clk 0:02:50]}  d6 {[%clk 0:02:58]} 6. Be2 {[%clk 0:02:50]}  O-O {[%clk 0:02:58]} 7. O-O {[%clk 0:02:50]}  Bg4 {[%clk 0:02:57]} 8. h3 {[%clk 0:02:47]}  Bxf3 {[%clk 0:02:57]} 9. Bxf3 {[%clk 0:02:48]}  Nfd7 {[%clk 0:02:56]} 10. Be2 {[%clk 0:02:47]}  Na6 {[%clk 0:02:54]} 11. Be3 {[%clk 0:02:42]}  Nc7 {[%clk 0:02:53]} 12. f4 {[%clk 0:02:40]}  a6 {[%clk 0:02:50]} 13. a4 {[%clk 0:02:39]}  b6 {[%clk 0:02:49]} 14. Qd2 {[%clk 0:02:38]}  Rb8 {[%clk 0:02:49]} 15. e5 {[%clk 0:02:27]}  dxe5 {[%clk 0:02:49]} 16. f5 {[%clk 0:02:28]}  Ne8 {[%clk 0:02:47]} 17. Bh6 {[%clk 0:02:25]}  Nd6 {[%clk 0:02:43]} 18. g4 {[%clk 0:02:18]}  b5 {[%clk 0:02:41]} 19. axb5 {[%clk 0:02:17]}  axb5 {[%clk 0:02:41]} 20. Bxg7 {[%clk 0:02:14]}  Kxg7 {[%clk 0:02:41]} 21. Qe3 {[%clk 0:02:09]}  c4 {[%clk 0:02:34]} 22. fxg6 {[%clk 0:01:29]}  hxg6 {[%clk 0:02:31]} 23. Qg3 {[%clk 0:01:23]}  f6 {[%clk 0:02:23]} 24. h4 {[%clk 0:01:18]}  Qb6+ {[%clk 0:02:18]} 25. Kg2 {[%clk 0:01:17]}  b4 {[%clk 0:02:18]} 26. Na4 {[%clk 0:01:15]}  Qd4 {[%clk 0:02:16]} 27. Bf3 {[%clk 0:00:33]}  e4 {[%clk 0:02:12]} 28. Be2 {[%clk 0:00:33]}  Qxd5 {[%clk 0:02:06]} 29. Rad1 {[%clk 0:00:34]}  Qe5 {[%clk 0:02:06]} 30. Qe3 {[%clk 0:00:29]}  Rh8 {[%clk 0:01:59]} 31. h5 {[%clk 0:00:28]}  gxh5 {[%clk 0:01:59]} 32. gxh5 {[%clk 0:00:29]}  Qg5+ {[%clk 0:01:50]} 33. Qxg5+ {[%clk 0:00:28]}  fxg5 {[%clk 0:01:51]} 34. Bxc4 {[%clk 0:00:22]}  Ne5 {[%clk 0:01:43]} 35. Be2 {[%clk 0:00:20]}  Ra8 {[%clk 0:01:33]} 36. b3 {[%clk 0:00:20]}  Rac8 {[%clk 0:01:33]} 37. Rc1 {[%clk 0:00:13]}  g4 {[%clk 0:01:26]} 38. Nb6 {[%clk 0:00:13]}  Rc3 {[%clk 0:01:23]} 39. Nd5 {[%clk 0:00:13]}  Rf3 {[%clk 0:01:07]} 40. Bxf3 {[%clk 0:00:12]}  exf3+ {[%clk 0:01:07]} 41. Kg3 {[%clk 0:00:11]}  Rxh5 {[%clk 0:01:06]} 42. Rh1 {[%clk 0:00:10]}  Rf5 {[%clk 0:01:01]} 43. Nxe7 {[%clk 0:00:09]}  Ne4+ {[%clk 0:01:00]} 44. Kh4 {[%clk 0:00:07]}  Rf8 {[%clk 0:00:56]} 45. Rce1 {[%clk 0:00:07]}  Rh8# {[%clk 0:00:55]} 0-1


[Site "https://www.chess.com"]

[Event "Titled Tuesday Blitz May 03 Late 2022"]
[White "Fiorito, Fabian"]
[Black "Ezat, Mohamed"]
[WhiteFideId "100200"]
[BlackFideId "10600906"]
[WhiteElo "2395"]
[BlackElo "2386"]
[Result "1-0"]
[Round "07"]
[TimeControl "180+1"]
[Date "2022.05.03"]
[WhiteClock "0:01:20"]
[BlackClock "0:01:06"]

1. e4 {[%clk 0:03:00]}  c6 {[%clk 0:02:49]} 2. d4 {[%clk 0:03:00]}  d5 {[%clk 0:02:49]} 3. Nc3 {[%clk 0:02:58]}  b5 {[%clk 0:02:48]} 4. a3 {[%clk 0:02:54]}  a6 {[%clk 0:02:46]} 5. exd5 {[%clk 0:02:53]}  cxd5 {[%clk 0:02:46]} 6. h3 {[%clk 0:02:53]}  Bf5 {[%clk 0:02:36]} 7. Nf3 {[%clk 0:02:49]}  e6 {[%clk 0:02:35]} 8. Be2 {[%clk 0:02:44]}  Nf6 {[%clk 0:02:33]} 9. O-O {[%clk 0:02:43]}  Bd6 {[%clk 0:02:32]} 10. Bd2 {[%clk 0:02:32]}  Nc6 {[%clk 0:02:29]} 11. Na2 {[%clk 0:02:26]}  O-O {[%clk 0:02:26]} 12. Nb4 {[%clk 0:02:26]}  Nxb4 {[%clk 0:02:23]} 13. Bxb4 {[%clk 0:02:26]}  Ne4 {[%clk 0:02:19]} 14. c3 {[%clk 0:02:21]}  a5 {[%clk 0:02:02]} 15. Bxd6 {[%clk 0:02:20]}  Nxd6 {[%clk 0:02:03]} 16. Bd3 {[%clk 0:02:15]}  Bxd3 {[%clk 0:01:54]} 17. Qxd3 {[%clk 0:02:13]}  Qb6 {[%clk 0:01:54]} 18. Ne5 {[%clk 0:02:10]}  Ra7 {[%clk 0:01:52]} 19. b3 {[%clk 0:02:07]}  Rc8 {[%clk 0:01:51]} 20. Rab1 {[%clk 0:01:56]}  Rac7 {[%clk 0:01:50]} 21. Rfc1 {[%clk 0:01:55]}  b4 {[%clk 0:01:50]} 22. axb4 {[%clk 0:01:54]}  axb4 {[%clk 0:01:50]} 23. c4 {[%clk 0:01:54]}  Qa6 {[%clk 0:01:40]} 24. c5 {[%clk 0:01:24]}  Nb5 {[%clk 0:01:39]} 25. Ra1 {[%clk 0:01:20]}  Qb7 {[%clk 0:01:38]} 26. c6 {[%clk 0:01:17]}  Qb8 {[%clk 0:01:28]} 27. Nd7 {[%clk 0:01:17]}  Rxd7 {[%clk 0:01:26]} 28. cxd7 {[%clk 0:01:18]}  Rxc1+ {[%clk 0:01:23]} 29. Rxc1 {[%clk 0:01:19]}  Nc3 {[%clk 0:01:18]} 30. Rxc3 {[%clk 0:01:19]}  bxc3 {[%clk 0:01:17]} 31. Qxc3 {[%clk 0:01:20]}  Qd8 {[%clk 0:01:07]} 32. Qc8 {[%clk 0:01:19]}  Qxc8 {[%clk 0:01:06]} 33. dxc8=Q# {[%clk 0:01:20]} 1-0


[Site "https://www.chess.com"]